bitfinex/quotes_SOLUSD_20240624
["timestamp","ask_amount","ask_price","bid_price","bid_amount"]
[1719253225875,7.8439,127.49,127.34,27.4846]
[1719253226677,7.8464,127.45,127.31,19.637]
[1719253226894,31.25,127.42,127.3,0.17]
[1719253227055,0.34,127.41,127.32,7.854]
[1719253227763,0.34,127.41,127.26,421.810816]
[1719253227971,0.34,127.41,127.27,45.56871636]
[1719253228274,0.34,127.41,127.27,22.02871636]
[1719253228461,0.34,127.41,127.27,29.88541636]
[1719253228662,0.34,127.41,127.28,7.8564]
[1719253228884,8.1887,127.41,127.27,22.02871636]
[1719253229068,31.25,127.38,127.28,23.54]
[1719253229270,0.34,127.37,127.28,23.54]
[1719253229576,0.34,127.37,127.27,2.38591636]
[1719253229778,0.34,127.37,127.28,19.641]
[1719253230160,0.34,127.37,127.28,43.181]
[1719253230365,0.34,127.37,127.27,2.38591636]
[1719253230965,0.34,127.37,127.27,10.24281636]
[1719253231163,0.34,127.37,127.28,31.3965]
[1719253231377,0.34,127.37,127.28,23.54]
[1719253232282,0.34,127.37,127.28,31.3964]
[1719253232484,39.40484342,127.44,127.27,22.02871636]
[1719253232485,70.65484342,127.44,127.32,7.854]
[1719253232785,31.25,127.44,127.32,23.54]
[1719253233079,31.25,127.44,127.32,31.3941]
[1719253233279,45.28820223,127.44,127.31,23.54]
[1719253233685,68.69100223,127.44,127.28,7.8561]
[1719253233983,31.25,127.4,127.27,2.38591636]
[1719253234179,0.34,127.39,127.27,25.92591636]
[1719253234382,8.1904,127.39,127.27,25.92591636]
[1719253234586,31.25,127.36,127.27,2.38591636]
[1719253234793,31.25,127.36,127.24,286.6059]
[1719253234794,0.34,127.35,127.24,286.6061]
[1719253234977,0.34,127.35,127.24,27.5061]
[1719253235369,0.34,127.35,127.25,23.54]
[1719253235571,0.34,127.35,127.24,27.5059]
[1719253235794,0.34,127.35,127.23,7.8595]
[1719253236089,0.34,127.35,127.21,19.6511]
[1719253236394,0.34,127.35,127.23,7.8596]
[1719253236700,0.34,127.35,127.21,19.6511]
[1719253236701,8.1926,127.35,127.21,27.5117]
[1719253236871,8.1926,127.35,127.22,7.8603]
[1719253236872,31.25,127.32,127.22,7.8603]
[1719253237063,0.34,127.31,127.22,7.8603]
[1719253237270,0.34,127.31,127.23,7.8596]
[1719253237472,0.34,127.31,127.21,19.6511]
[1719253237672,0.34,127.31,127.19,259.1]
[1719253237975,0.34,127.31,127.19,266.9622]
[1719253238173,0.34,127.31,127.2,7.8615]
[1719253238578,0.34,127.31,127.2,31.4015]
[1719253239110,0.34,127.31,127.21,31.4009]
[1719253239299,0.34,127.31,127.21,23.54]
[1719253239981,0.34,127.31,127.23,23.54]
[1719253240501,0.34,127.31,127.22,43.1907]
[1719253240701,0.34,127.31,127.19,318.0636]
[1719253240878,0.34,127.31,127.2,20.0]
[1719253241098,0.34,127.31,127.2,7.8614]
[1719253241289,0.34,127.31,127.2,7.8615]
[1719253241587,0.34,127.31,127.21,31.401]
[1719253241797,31.25,127.32,127.19,300.79661706]
[1719253242006,31.25,127.32,127.22,2.38685407]
[1719253242203,31.25,127.32,127.2,19.8229]
[1719253242513,7.855,127.31,127.19,259.1]
[1719253242805,62.5,127.32,127.19,282.64]
[1719253242976,0.34,127.31,127.19,290.5021]
[1719253243575,0.34,127.31,127.2,31.4016]
[1719253244292,31.25,127.32,127.22,23.54]
[1719253244485,31.25,127.32,127.21,23.54]
[1719253244673,31.25,127.32,127.22,7.8603]
[1719253244877,31.25,127.32,127.22,31.4003]
[1719253245284,31.25,127.32,127.22,23.54]
[1719253245598,0.34,127.31,127.22,23.54]
[1719253246294,0.34,127.31,127.23,23.54]
[1719253246502,0.17,127.31,127.23,31.3993]
[1719253246678,0.17,127.31,127.24,23.54]
[1719253246875,0.17,127.31,127.23,31.3994]
[1719253247075,40.43029719,127.38,127.27,23.54]
[1719253247281,31.25,127.38,127.27,23.54]
[1719253247485,31.25,127.38,127.25,19.6454]
[1719253247685,31.25,127.38,127.26,27.8577]
[1719253247887,31.25,127.38,127.27,23.54]
[1719253248230,68.69072351,127.38,127.22,19.6503]
[1719253248412,76.54132351,127.38,127.24,7.8586]
[1719253248619,0.17,127.37,127.24,19.6475]
[1719253248820,0.17,127.37,127.25,23.71]
[1719253249026,37.44072351,127.38,127.25,23.71]
[1719253249224,31.25,127.38,127.27,23.54]
[1719253249429,31.25,127.38,127.29,31.396]
[1719253249728,31.25,127.38,127.29,23.54]
[1719253250512,37.4526131,127.4,127.29,51.0351]
[1719253250716,31.25,127.4,127.3,23.54]
[1719253250925,31.25,127.4,127.31,23.54]
[1719253251138,31.25,127.4,127.31,31.3948]
[1719253251444,31.25,127.4,127.31,23.54]
[1719253251805,31.25,127.4,127.3,23.54]
[1719253252005,31.25,127.4,127.3,31.3954]
[1719253252228,31.25,127.4,127.31,31.3947]
[1719253252406,31.25,127.4,127.31,23.54]
[1719253253123,31.25,127.4,127.3,2.38535409]
[1719253253437,31.25,127.4,127.27,23.54]
[1719253253647,0.34,127.39,127.29,23.54]
[1719253253814,0.34,127.39,127.27,2.38591636]
[1719253254016,31.25,127.36,127.27,2.38591636]
[1719253254225,0.34,127.35,127.27,2.38591636]
[1719253254430,0.34,127.35,127.24,31.3988]
[1719253254607,0.34,127.35,127.24,23.54]
[1719253254933,0.34,127.35,127.22,19.6501]
[1719253254934,0.34,127.35,127.23,23.54]
[1719253255953,0.34,127.35,127.24,23.54]
[1719253256617,0.34,127.35,127.22,23.54]
[1719253256820,31.25,127.32,127.22,23.54]
[1719253257221,31.25,127.32,127.24,23.54]
[1719253257411,0.17,127.35,127.25,7.858]
[1719253257412,0.17,127.33,127.25,7.858]
[1719253257612,0.17,127.35,127.23,31.3995]
[1719253257819,31.25,127.34,127.23,23.54]
[1719253258133,31.25,127.34,127.26,23.54]
[1719253258134,0.17,127.33,127.26,23.54]
[1719253258339,0.17,127.33,127.23,2.38666647]
[1719253258642,0.17,127.33,127.23,25.92666647]
[1719253259213,0.17,127.33,127.24,31.399]
[1719253259636,0.34,127.33,127.24,23.54]
[1719253259822,0.34,127.33,127.23,2.38666647]
[1719253260335,0.34,127.33,127.23,23.54]
[1719253260537,0.17,127.33,127.25,31.3981]
[1719253260832,31.25,127.34,127.27,23.54]
[1719253261636,4.14875643,127.39,127.29,31.396]
[1719253261843,4.14875643,127.39,127.29,23.54]
[1719253262018,4.14875643,127.39,127.29,43.1797]
[1719253262224,9.18698915,127.42,127.3,31.3953]
[1719253262648,9.18698915,127.42,127.34,23.54]
[1719253262838,31.25,127.44,127.35,31.3922]
[1719253263139,4.14875643,127.48,127.37,23.54]
[1719253263341,39.094,127.49,127.35,23.54]
[1719253263523,31.25,127.49,127.35,31.3923]
[1719253263722,31.25,127.49,127.37,23.54]
[1719253264123,31.25,127.45,127.33,19.6332]
[1719253264323,31.25,127.45,127.34,23.54]
[1719253265220,0.17,127.44,127.36,23.54]
[1719253265529,31.25,127.45,127.33,23.54]
[1719253266128,31.25,127.45,127.33,31.3934]
[1719253266630,31.25,127.45,127.33,23.54]
[1719253266631,0.34,127.44,127.33,23.54]
[1719253266835,0.34,127.44,127.33,31.3935]
[1719253267032,0.34,127.44,127.33,23.54]
[1719253267952,31.25,127.41,127.3,2.38535409]
[1719253268131,0.17,127.4,127.3,2.38535409]
[1719253268438,31.25,127.37,127.23,7.8592]
[1719253268747,31.25,127.37,127.24,7.859]
[1719253268748,0.17,127.36,127.24,7.859]
[1719253268931,31.25,127.33,127.25,23.54]
[1719253269133,0.17,127.32,127.25,23.54]
[1719253269325,0.34,127.32,127.25,23.54]
[1719253270247,0.34,127.32,127.25,31.3984]
[1719253270437,0.34,127.32,127.25,23.54]
[1719253271145,31.25,127.33,127.25,23.54]
[1719253271346,31.25,127.38,127.27,23.54]
[1719253271652,31.25,127.38,127.21,321.1735]
[1719253271833,31.25,127.34,127.22,22.55685407]
[1719253272037,62.5,127.38,127.25,7.8581]
[1719253272438,62.5,127.38,127.26,23.54]
[1719253272640,0.34,127.37,127.26,23.54]
[1719253272948,6.24914134,127.39,127.26,23.54]
[1719253273250,31.25,127.4,127.28,23.54]
[1719253273436,31.25,127.4,127.31,23.54]
[1719253273752,31.25,127.4,127.32,23.54]
[1719253273957,31.25,127.4,127.32,31.3941]
[1719253274161,31.25,127.4,127.32,23.54]
[1719253274643,0.17,127.39,127.32,23.54]
[1719253274831,0.34,127.39,127.3,43.1782]
[1719253275033,0.17,127.39,127.31,7.8544]
[1719253275350,0.17,127.39,127.32,23.54]
[1719253276245,0.17,127.39,127.27,27.4988]
[1719253276439,0.17,127.39,127.28,20.17]
[1719253276642,0.17,127.39,127.27,19.6421]
[1719253276847,0.34,127.39,127.27,19.6421]
[1719253277043,0.34,127.39,127.29,19.6394]
[1719253277259,0.34,127.39,127.32,7.8542]
[1719253277558,0.34,127.39,127.31,19.6365]
[1719253278264,0.34,127.39,127.31,43.1765]
[1719253278652,31.25,127.4,127.35,23.54]
[1719253278853,31.25,127.44,127.35,23.54]
[1719253279053,31.25,127.44,127.33,27.4873]
[1719253279264,31.25,127.44,127.34,23.54]
[1719253279456,31.25,127.44,127.36,31.3916]
[1719253279665,31.25,127.44,127.35,27.4827]
[1719253279866,31.25,127.44,127.35,19.6304]
[1719253280271,31.25,127.44,127.32,0.34]
[1719253280467,31.25,127.44,127.29,7.8559]
[1719253280468,7.8475,127.43,127.29,7.8559]
[1719253280665,31.25,127.4,127.29,27.4949]
[1719253280985,0.34,127.39,127.27,7.8572]
[1719253281159,0.34,127.39,127.24,7.8589]
[1719253281492,0.34,127.39,127.23,22.03496647]
[1719253281493,31.25,127.31,127.23,2.38666647]
[1719253281666,30.25,127.31,127.23,2.38666647]
[1719253281983,0.34,127.3,127.21,7.8608]
[1719253282174,30.25,127.31,127.24,7.8591]
[1719253282777,30.25,127.31,127.24,31.3991]
[1719253282961,30.25,127.31,127.21,2.38704171]
[1719253282962,0.34,127.3,127.21,2.38704171]
[1719253283362,30.25,127.31,127.22,7.8599]
[1719253283577,30.25,127.31,127.23,23.54]
[1719253283751,0.34,127.3,127.23,23.54]
[1719253283952,30.25,127.31,127.21,2.38704171]
[1719253284179,31.25,127.38,127.21,2.38704171]
[1719253284367,31.25,127.38,127.3,31.3949]
[1719253284679,31.25,127.38,127.31,23.54]
[1719253285178,31.25,127.44,127.31,23.54]
[1719253285179,62.5,127.44,127.31,23.54]
[1719253285479,31.25,127.44,127.31,23.54]
[1719253285792,62.5,127.44,127.31,23.54]
[1719253285961,31.25,127.4,127.31,23.54]
[1719253286780,0.17,127.39,127.31,23.54]
[1719253286963,4.65431198,127.46,127.37,23.54]
[1719253287278,31.25,127.5,127.4,31.389]
[1719253287587,31.25,127.5,127.42,23.54]
[1719253287889,31.25,127.5,127.41,23.54]
[1719253288262,31.25,127.5,127.41,31.3886]
[1719253288872,7.8401,127.55,127.4,31.7292]
[1719253289258,81.38978209,127.56,127.42,7.8479]
[1719253289462,31.25,127.52,127.41,31.3885]
[1719253289860,0.34,127.51,127.41,31.3885]
[1719253290176,0.34,127.51,127.41,23.54]
[1719253290477,0.34,127.51,127.39,31.3898]
[1719253290664,0.34,127.51,127.36,58.8846]
[1719253290665,0.34,127.51,127.4,31.3891]
[1719253290862,8.183,127.51,127.39,23.54]
[1719253291165,0.34,127.51,127.39,23.54]
[1719253291573,31.25,127.52,127.41,31.3884]
[1719253291975,8.14669444,127.55,127.43,23.54]
[1719253292173,31.25,127.56,127.45,51.0011]
[1719253292379,31.25,127.56,127.45,43.155]
[1719253292891,31.25,127.56,127.47,23.54]
[1719253293184,31.25,127.56,127.47,31.3845]
[1719253293377,31.25,127.56,127.47,23.54]
[1719253294374,0.17,127.55,127.46,23.54]
[1719253294575,0.34,127.55,127.45,23.54]
[1719253294784,0.34,127.55,127.42,20.0]
[1719253295378,6.38744412,127.58,127.43,23.54]
[1719253295565,31.25,127.57,127.47,23.54]
[1719253295770,31.25,127.57,127.47,31.3845]
[1719253296171,31.25,127.57,127.48,31.3841]
[1719253296366,31.25,127.57,127.49,31.3836]
[1719253296589,39.39286901,127.62,127.5,31.3828]
[1719253296783,31.25,127.62,127.51,39.6057]
[1719253297569,31.25,127.62,127.51,47.4481]
[1719253297764,31.25,127.62,127.52,7.8416]
[1719253298074,31.25,127.62,127.51,20.0]
[1719253298586,31.25,127.62,127.52,7.8417]
[1719253298786,31.25,127.62,127.51,27.8423]
[1719253298985,31.25,127.62,127.52,7.8418]
[1719253299179,31.25,127.62,127.52,27.4458]
[1719253299373,31.25,127.62,127.53,7.8412]
[1719253299575,31.25,127.62,127.52,19.6043]
[1719253299576,31.25,127.62,127.52,27.4459]
[1719253300172,31.25,127.62,127.48,19.61]
[1719253300480,39.0862,127.62,127.49,20.0]
[1719253300688,39.0862,127.62,127.46,6.18719188]
[1719253300689,31.25,127.58,127.45,278.7143]
[1719253300890,31.25,127.58,127.45,286.5604]
[1719253301087,0.17,127.57,127.46,7.8455]
[1719253301476,0.34,127.57,127.47,19.6122]
[1719253301678,0.34,127.57,127.49,7.8433]
[1719253301982,0.34,127.57,127.5,7.843]
[1719253302207,0.34,127.57,127.51,45.0]
[1719253302994,0.17,127.57,127.51,45.0]
[1719253303186,31.25,127.62,127.51,19.6057]
[1719253303386,31.25,127.62,127.52,45.0]
[1719253304178,31.25,127.62,127.51,45.0]
[1719253304391,0.17,127.61,127.51,45.0]
[1719253304587,0.34,127.61,127.51,45.0]
[1719253305196,0.34,127.61,127.44,2.38273364]
[1719253305379,31.25,127.56,127.44,2.38273364]
[1719253305694,31.25,127.56,127.45,7.8461]
[1719253305695,0.17,127.55,127.45,7.8461]
[1719253305884,0.17,127.55,127.44,21.99833364]
[1719253305885,0.34,127.55,127.44,2.38273364]
[1719253306086,31.25,127.52,127.44,2.38273364]
[1719253306288,0.34,127.51,127.44,2.38273364]
[1719253306593,31.25,127.56,127.45,19.6152]
[1719253306899,0.34,127.55,127.46,23.54]
[1719253308080,0.34,127.55,127.45,19.6152]
[1719253308278,0.34,127.55,127.44,2.38273364]
[1719253308482,0.34,127.55,127.44,30.22953364]
[1719253308701,0.34,127.55,127.44,2.38273364]
[1719253309207,31.25,127.52,127.44,2.38273364]
[1719253309515,0.17,127.51,127.4,259.1]
[1719253309681,31.25,127.48,127.39,7.8498]
[1719253310006,0.34,127.47,127.37,7.851]
[1719253310298,0.34,127.47,127.38,23.54]
[1719253310676,0.34,127.47,127.39,7.8495]
[1719253310883,0.34,127.47,127.37,19.6273]
[1719253311190,31.25,127.48,127.37,19.6273]
[1719253311191,31.25,127.48,127.41,31.3881]
[1719253311390,7.8402,127.55,127.41,31.3881]
[1719253311391,0.34,127.49,127.41,31.3881]
[1719253311592,31.25,127.52,127.42,31.3879]
[1719253311786,31.25,127.52,127.42,23.54]
[1719253312384,31.87049842,127.56,127.37,2.38404315]
[1719253312385,31.25,127.48,127.37,2.38404315]
[1719253312902,31.25,127.48,127.39,7.8495]
[1719253313081,31.25,127.48,127.39,27.4743]
[1719253313280,0.34,127.47,127.39,19.6245]
[1719253313476,0.34,127.47,127.38,31.3903]
[1719253313803,31.25,127.48,127.4,43.1626]
[1719253314107,40.02125816,127.56,127.43,23.54]
[1719253314307,31.25,127.56,127.45,31.3861]
[1719253315001,31.25,127.56,127.44,23.54]
[1719253315188,31.25,127.58,127.43,0.17]
[1719253315392,31.25,127.59,127.5,23.54]
[1719253315597,31.25,127.62,127.5,7.8426]
[1719253316011,31.25,127.62,127.51,23.54]
[1719253316214,31.25,127.62,127.49,27.4521]
[1719253316421,31.25,127.62,127.5,7.8428]
[1719253316602,31.25,127.62,127.52,7.8418]
[1719253316811,31.25,127.62,127.51,19.6056]
[1719253317005,31.25,127.62,127.5,43.54]
[1719253317334,31.25,127.62,127.52,23.54]
[1719253318422,31.25,127.62,127.54,23.54]
[1719253318812,31.25,127.62,127.53,23.54]
[1719253319020,31.25,127.62,127.51,19.9453]
[1719253319311,31.25,127.62,127.52,22.55123883]
[1719253319548,31.25,127.62,127.52,30.22303883]
[1719253319707,31.25,127.62,127.53,7.841]
[1719253319912,31.25,127.62,127.55,23.54]
[1719253320313,31.25,127.62,127.52,22.38123883]
[1719253320314,31.25,127.62,127.52,30.22303883]
[1719253320524,31.25,127.62,127.53,7.8408]
[1719253320701,31.25,127.62,127.52,42.15473883]
[1719253321023,31.25,127.62,127.54,23.54]
[1719253321317,0.17,127.63,127.53,7.8411]
[1719253321318,8.14288031,127.68,127.59,31.3773]
[1719253321517,22.381239,127.71,127.59,31.3773]
[1719253321518,31.25,127.69,127.59,31.3773]
[1719253321719,22.381239,127.71,127.55,20.17]
[1719253321720,53.631239,127.71,127.55,20.17]
[1719253321901,53.631239,127.71,127.62,23.54]
[1719253321902,31.25,127.71,127.62,23.54]
[1719253322101,31.25,127.74,127.62,43.1289]
[1719253322311,37.4945692,127.74,127.63,20.0]
[1719253322502,31.25,127.74,127.66,7.8331]
[1719253322733,31.25,127.74,127.63,27.835]
[1719253322919,31.25,127.74,127.6,23.54]
[1719253323124,31.25,127.7,127.57,7.8387]
[1719253323368,31.25,127.7,127.58,0.34]
[1719253323527,79.00983359,127.74,127.6,19.5913]
[1719253323728,79.00983359,127.74,127.61,7.8359]
[1719253323729,71.18143359,127.74,127.61,7.8359]
[1719253323940,71.18143359,127.74,127.62,23.54]
[1719253324450,71.18143359,127.74,127.57,19.5962]
[1719253324652,31.25,127.69,127.58,27.8381]
[1719253324829,0.34,127.68,127.57,19.5962]
[1719253325035,0.34,127.68,127.58,23.54]
[1719253325243,0.34,127.68,127.55,7.8399]
[1719253325443,31.25,127.65,127.53,259.1]
[1719253325646,0.34,127.64,127.52,2.38123883]
[1719253325845,0.34,127.64,127.53,27.4431]
[1719253326048,0.34,127.64,127.54,7.8401]
[1719253326245,0.34,127.64,127.53,27.4436]
[1719253326433,0.34,127.64,127.53,19.6024]
[1719253326654,0.34,127.64,127.52,2.38123883]
[1719253327061,0.34,127.64,127.57,23.54]
[1719253327233,0.34,127.64,127.57,31.3783]
[1719253327641,0.34,127.64,127.56,19.598]
[1719253327833,0.17,127.64,127.54,7.8404]
[1719253328034,0.17,127.64,127.52,2.38123883]
[1719253328255,31.25,127.61,127.52,2.38123883]
[1719253328457,31.25,127.57,127.52,2.38123883]
[1719253328654,0.17,127.56,127.52,2.38123883]
[1719253329160,0.34,127.56,127.52,2.38123883]
[1719253329758,0.34,127.56,127.48,31.3842]
[1719253330257,0.34,127.56,127.49,31.3837]
[1719253330449,0.34,127.56,127.46,7.8455]
[1719253330764,0.34,127.56,127.42,325.49810737]
[1719253330960,8.1795,127.56,127.42,302.09550737]
[1719253331258,31.25,127.53,127.43,27.465]
[1719253331559,0.34,127.52,127.43,43.1578]
[1719253331730,0.34,127.52,127.44,7.8467]
[1719253331932,0.34,127.52,127.43,51.005]
[1719253332831,0.34,127.52,127.44,31.3867]
[1719253333148,0.34,127.52,127.44,23.54]
[1719253333455,0.17,127.52,127.44,7.8466]
[1719253333642,0.17,127.52,127.45,20.0]
[1719253333842,0.17,127.53,127.45,20.0]
[1719253334260,0.17,127.53,127.45,23.54]
[1719253334463,0.17,127.53,127.44,19.6161]
[1719253334774,0.17,127.53,127.45,20.0]
[1719253335058,0.17,127.53,127.42,259.1]
[1719253335259,8.14058258,127.58,127.47,43.1516]
[1719253335461,8.14058258,127.58,127.5,23.54]
[1719253335674,31.25,127.59,127.49,19.6086]
[1719253336190,7.8327,127.67,127.51,19.6054]
[1719253336481,62.5,127.68,127.57,23.54]
[1719253336482,6.37205867,127.68,127.57,23.54]
[1719253336677,31.25,127.7,127.58,7.8377]
[1719253336837,31.25,127.7,127.58,31.3777]
[1719253337253,31.25,127.7,127.58,23.54]
[1719253337453,31.25,127.7,127.6,31.3765]
[1719253337660,6.24559791,127.72,127.61,68.54]
[1719253337857,31.25,127.74,127.62,27.8357]
[1719253338060,31.25,127.74,127.63,45.0]
[1719253339355,104.29501666,127.74,127.55,19.5995]
[1719253339565,31.25,127.68,127.56,20.0]
[1719253339755,4.65431198,127.73,127.56,20.0]
[1719253339756,4.65431198,127.73,127.59,7.8372]
[1719253339957,31.25,127.69,127.58,43.1345]
[1719253340189,31.25,127.69,127.58,19.5945]
[1719253340190,0.34,127.68,127.58,19.5945]
[1719253340483,0.34,127.68,127.56,27.8389]
[1719253340680,0.34,127.68,127.57,7.8385]
[1719253340883,0.34,127.68,127.58,45.0]
[1719253341259,0.34,127.68,127.57,45.0]
[1719253341459,0.34,127.68,127.56,27.8393]
[1719253341893,8.1721,127.68,127.56,20.0]
[1719253342087,0.34,127.68,127.55,20.0]
[1719253342270,0.34,127.68,127.55,19.5993]
[1719253342459,0.34,127.68,127.57,19.5964]
[1719253342660,0.17,127.68,127.58,20.0]
[1719253342859,31.25,127.69,127.58,20.0]
[1719253343059,31.25,127.69,127.59,31.3771]
[1719253343264,31.25,127.69,127.6,31.3769]
[1719253343660,31.25,127.69,127.61,45.0]
[1719253344457,0.34,127.68,127.61,45.0]
[1719253344662,0.34,127.68,127.56,7.8388]
[1719253344885,0.34,127.68,127.57,20.0]
[1719253345086,0.34,127.68,127.54,43.1413]
[1719253345304,8.1722,127.68,127.54,50.9814]
[1719253345459,8.1722,127.68,127.55,20.0]
[1719253345663,8.1721,127.68,127.55,20.0]
[1719253345870,0.34,127.68,127.55,20.0]
[1719253346390,7.8327,127.67,127.55,20.0]
[1719253346703,0.17,127.66,127.54,27.8402]
[1719253346868,31.25,127.65,127.52,649.5]
[1719253347193,31.25,127.61,127.49,23.54]
[1719253347367,31.25,127.61,127.48,6.004]
[1719253347368,31.25,127.61,127.48,7.8441]
[1719253347571,0.17,127.6,127.49,19.6086]
[1719253347792,0.17,127.6,127.5,7.843]
[1719253347793,0.34,127.6,127.5,7.843]
[1719253347981,0.34,127.6,127.49,19.6086]
[1719253348176,0.17,127.59,127.49,27.4522]
[1719253348379,0.17,127.6,127.49,19.6086]
[1719253348698,0.34,127.61,127.49,19.6086]
[1719253348895,0.34,127.61,127.51,7.8424]
[1719253349293,0.34,127.61,127.5,7.8431]
[1719253349613,0.34,127.61,127.51,7.8425]
[1719253349776,0.34,127.61,127.5,7.8429]
[1719253349972,0.34,127.61,127.51,7.8424]
[1719253350172,0.34,127.61,127.52,45.0]
[1719253350591,0.34,127.61,127.51,45.0]
[1719253350787,0.34,127.61,127.51,52.8424]
[1719253351191,0.34,127.61,127.51,76.3824]
[1719253351496,8.14788616,127.66,127.52,43.54]
[1719253351802,255.1,127.72,127.53,53.0107]
[1719253352095,7.8325,127.68,127.54,30.22146542]
[1719253352287,7.8325,127.68,127.55,45.0]
[1719253352673,7.8327,127.67,127.55,45.0]
[1719253352888,31.25,127.65,127.55,45.0]
[1719253353169,31.25,127.65,127.54,47.38086542]
[1719253353403,31.25,127.65,127.51,7.8424]
[1719253353404,0.17,127.64,127.51,7.8424]
[1719253353603,0.34,127.64,127.48,45.2321]
[1719253354205,0.34,127.64,127.51,31.3819]
[1719253354613,7.8377,127.59,127.49,2.38179916]
[1719253354793,0.34,127.64,127.44,33.9073]
[1719253354794,31.25,127.57,127.44,33.9073]
[1719253354990,31.25,127.57,127.44,2.38273364]
[1719253354991,31.25,127.53,127.44,2.38273364]
[1719253355293,0.34,127.52,127.44,2.38273364]
[1719253355497,0.34,127.52,127.41,43.1604]
[1719253355716,0.34,127.52,127.4,7.8488]
[1719253355717,0.34,127.52,127.4,7.8492]
[1719253355921,0.34,127.52,127.4,10.23208175]
[1719253356219,0.34,127.52,127.4,45.54538175]
[1719253356399,0.34,127.52,127.41,31.3881]
[1719253356723,0.34,127.52,127.41,23.54]
[1719253356901,0.34,127.52,127.41,31.3885]
[1719253357099,0.34,127.52,127.42,31.3878]
[1719253357305,0.34,127.52,127.43,45.0]
[1719253357620,0.34,127.52,127.43,76.3873]
[1719253357793,0.34,127.52,127.43,45.0]
[1719253357994,0.34,127.52,127.43,68.54]
[1719253358205,0.34,127.52,127.43,76.387]
[1719253358396,0.34,127.52,127.45,7.8458]
[1719253358695,31.25,127.62,127.46,45.0]
[1719253358890,31.25,127.58,127.46,45.0]
[1719253359093,31.25,127.54,127.46,45.0]
[1719253359990,31.25,127.58,127.47,19.6121]
[1719253360190,31.25,127.58,127.48,45.0]
[1719253360692,0.17,127.57,127.48,45.0]
[1719253361099,31.25,127.54,127.44,23.54]
[1719253361301,0.34,127.53,127.42,31.3879]
[1719253361500,0.34,127.53,127.43,51.3872]
[1719253361720,0.34,127.53,127.44,7.8467]
[1719253361923,0.34,127.53,127.43,71.0053]
[1719253362127,0.34,127.53,127.45,19.6152]
[1719253362306,0.34,127.53,127.44,23.54]
[1719253362507,0.34,127.53,127.43,20.0]
[1719253362909,31.25,127.54,127.43,20.0]
[1719253363305,31.25,127.54,127.43,51.3874]